bitfinex-derivatives/quotes_BTCF0:USTF0_20250508
["timestamp","ask_amount","ask_price","bid_price","bid_amount"]
[1746733495054,0.27336,101300.0,101290.0,1.54880354]
[1746733495958,0.27336,101300.0,101290.0,1.35527154]
[1746733497760,0.27336,101300.0,101290.0,1.48219825]
[1746733498149,0.27336,101300.0,101290.0,1.28219825]
[1746733500853,0.24026,101300.0,101290.0,1.34231387]
[1746733501048,0.4376637,101300.0,101290.0,1.34231387]
[1746733501249,0.73459041,101300.0,101290.0,0.76538716]
[1746733501549,0.77009041,101300.0,101290.0,0.90538716]
[1746733501751,0.72701712,101300.0,101290.0,0.77698396]
[1746733501946,1.45573712,101300.0,101290.0,0.40698396]
[1746733502147,0.1974232,101290.0,101280.0,0.15025907]
[1746733502351,0.90287662,101290.0,101280.0,0.15025907]
[1746733502651,0.77594991,101290.0,101280.0,0.15025907]
[1746733503049,0.77594991,101290.0,101280.0,0.34770177]
[1746733503247,0.94394991,101290.0,101280.0,0.34770177]
[1746733503958,0.94394991,101290.0,101280.0,0.70850177]
[1746733504346,0.8170232,101290.0,101280.0,0.71250177]
[1746733504550,0.8170232,101290.0,101280.0,0.78040177]
[1746733504951,0.8170232,101290.0,101280.0,0.78340177]
[1746733505154,0.8190232,101290.0,101280.0,0.6291427]
[1746733505352,0.8521232,101290.0,101280.0,0.6261427]
[1746733505650,0.4731232,101290.0,101280.0,0.6261427]
[1746733505859,0.4721232,101290.0,101280.0,0.6261427]
[1746733506060,0.4745832,101290.0,101280.0,0.6261427]
[1746733507061,0.66806103,101290.0,101280.0,0.5914427]
[1746733509065,0.4745832,101290.0,101280.0,0.5914427]
[1746733509266,0.4745832,101290.0,101280.0,0.6271427]
[1746733509458,0.4745832,101290.0,101280.0,0.7147827]
[1746733509659,0.4745832,101290.0,101280.0,0.6271427]
[1746733509857,0.4745832,101290.0,101280.0,0.6790827]
[1746733511266,0.1974427,101280.0,101270.0,0.6815989]
[1746733511465,0.2991427,101280.0,101270.0,0.8364989]
[1746733512167,0.4671427,101280.0,101270.0,0.8364989]
[1746733512370,0.4671427,101280.0,101270.0,0.8726989]
[1746733512967,0.4671427,101280.0,101270.0,0.8736989]
[1746733513566,0.4671427,101280.0,101270.0,1.06717673]
[1746733513967,0.4671427,101280.0,101270.0,1.06517673]
[1746733514165,0.4671427,101280.0,101270.0,1.08053842]
[1746733514668,0.3654427,101280.0,101270.0,1.37053842]
[1746733515057,0.3654427,101280.0,101270.0,1.36953842]
[1746733515260,0.2318427,101280.0,101270.0,1.36953842]
[1746733516071,0.3998427,101280.0,101270.0,1.36953842]
[1746733516276,0.3998427,101280.0,101270.0,1.17606059]
[1746733516568,0.4675427,101280.0,101270.0,1.17574663]
[1746733517467,0.4675427,101280.0,101270.0,1.36922446]
[1746733517867,0.4333427,101280.0,101270.0,1.36922446]
[1746733520176,0.4333427,101280.0,101270.0,1.36958453]
[1746733520772,0.2359,101280.0,101270.0,1.36958453]
[1746733520972,0.3664427,101280.0,101270.0,1.36958453]
[1746733521475,0.4003427,101280.0,101270.0,1.36958453]
[1746733521674,0.4003427,101280.0,101270.0,1.38476355]
[1746733521877,0.4003427,101280.0,101270.0,1.3847876]
[1746733522672,0.4003427,101280.0,101270.0,1.38478759]
[1746733523778,0.4003427,101280.0,101270.0,1.19130976]
[1746733523974,0.4003427,101280.0,101270.0,1.38478759]
[1746733524779,0.4003427,101280.0,101270.0,1.38478786]
[1746733525078,0.2323427,101280.0,101270.0,1.38478786]
[1746733525480,0.49252053,101280.0,101270.0,0.47631113]
[1746733525676,0.1974622,101270.0,101260.0,0.11845925]
[1746733525876,0.54820003,101270.0,101260.0,0.09463222]
[1746733526078,0.71620003,101270.0,101260.0,0.09463222]
[1746733526874,0.71620003,101270.0,101260.0,0.09763222]
[1746733527476,1.17575203,101270.0,101260.0,0.01243222]
[1746733527981,1.17575203,101270.0,101260.0,0.01043222]
[1746733528278,1.17775203,101270.0,101260.0,0.01043222]
[1746733528881,1.17875203,101270.0,101260.0,0.20491392]
[1746733529082,1.17875203,101270.0,101260.0,0.00743222]
[1746733529381,1.17875203,101270.0,101260.0,0.1974817]
[1746733529971,1.85785203,101270.0,101260.0,0.1974817]
[1746733531186,1.5772142,101270.0,101260.0,0.1974817]
[1746733531380,1.85777203,101270.0,101260.0,0.1974817]
[1746733531578,1.85777203,101270.0,101260.0,0.20486234]
[1746733533183,1.85777203,101270.0,101260.0,0.00738064]
[1746733533385,0.1974817,101260.0,101250.0,0.76107343]
[1746733533584,0.49895953,101260.0,101250.0,0.76107343]
[1746733533882,0.49895953,101260.0,101250.0,0.71169833]
[1746733534085,0.66695953,101260.0,101250.0,0.71169833]
[1746733535280,0.66695953,101260.0,101250.0,0.71369833]
[1746733536788,0.66695953,101260.0,101250.0,0.72118592]
[1746733536990,0.66695953,101260.0,101250.0,0.02804962]
[1746733537379,0.66695953,101260.0,101250.0,0.22555082]
[1746733537986,0.66695953,101260.0,101250.0,0.24098867]
[1746733539392,0.66695953,101260.0,101250.0,0.04348747]
[1746733542980,0.4734817,101260.0,101250.0,0.60178867]
[1746733543180,0.4734817,101260.0,101250.0,0.66370108]
[1746733543380,0.66695953,101260.0,101250.0,0.66370108]
[1746733544283,0.66695953,101260.0,101250.0,0.70010108]
[1746733545588,0.4734817,101260.0,101250.0,0.70010108]
[1746733545786,0.4017817,101260.0,101250.0,0.70010108]
[1746733545986,0.4017817,101260.0,101250.0,0.70763934]
[1746733546391,0.4017817,101260.0,101250.0,0.70010108]
[1746733546794,0.4017817,101260.0,101250.0,1.03010108]
[1746733548291,0.2337817,101260.0,101250.0,1.03010108]
[1746733548593,1.0246833,101270.0,101260.0,0.1974817]
[1746733548791,1.0246833,101270.0,101260.0,0.91099953]
[1746733548990,1.0271433,101270.0,101260.0,0.92643738]
[1746733549492,1.0271433,101270.0,101260.0,0.73295955]
[1746733549700,0.68156,101270.0,101260.0,1.3418717]
[1746733549992,0.68356,101270.0,101260.0,1.3418717]
[1746733550494,0.8810222,101270.0,101260.0,1.3418717]
[1746733550893,0.68356,101270.0,101260.0,1.3418717]
[1746733551097,0.00446,101270.0,101260.0,1.3418717]
[1746733551286,0.00546,101270.0,101260.0,1.3418717]
[1746733552094,0.00546,101270.0,101260.0,1.5098717]
[1746733552687,0.00346,101270.0,101260.0,1.5098717]
[1746733553187,0.00346,101270.0,101260.0,1.50986959]
[1746733554191,0.00246,101270.0,101260.0,1.34386959]
[1746733554401,0.00246,101270.0,101260.0,1.34586959]
[1746733554793,0.00246,101270.0,101260.0,1.34686953]
[1746733555289,0.00246,101270.0,101260.0,1.43318953]
[1746733556586,0.00246,101270.0,101260.0,1.43318955]
[1746733556986,0.1999222,101270.0,101260.0,1.06615172]
[1746733557192,0.1999222,101270.0,101260.0,1.15295172]
[1746733557398,0.2335222,101270.0,101260.0,1.06615172]
[1746733557596,0.42700003,101270.0,101260.0,0.75295172]
[1746733557799,0.49970003,101270.0,101260.0,0.75295172]
[1746733557994,0.49970003,101270.0,101260.0,0.73751955]
[1746733558191,0.66770003,101270.0,101260.0,0.73751955]
[1746733558399,0.4380222,101270.0,101260.0,0.75295393]
[1746733559002,0.4015222,101270.0,101260.0,0.75295393]
[1746733559696,0.4015222,101270.0,101260.0,0.75095393]
[1746733560706,0.4015222,101270.0,101260.0,0.74795393]
[1746733560897,0.4015222,101270.0,101260.0,0.74995393]
[1746733561095,0.4015222,101270.0,101260.0,0.74995386]
[1746733561096,0.4356222,101270.0,101260.0,0.74995386]
[1746733561504,0.62910003,101270.0,101260.0,0.73451955]
[1746733561705,0.62910003,101270.0,101260.0,1.14451955]
[1746733562005,0.4356222,101270.0,101260.0,1.14451955]
[1746733563211,0.62910003,101270.0,101260.0,0.92995389]
[1746733563408,0.62910003,101270.0,101260.0,0.91451955]
[1746733563597,0.62910003,101270.0,101260.0,0.92995395]
[1746733563803,0.62910003,101270.0,101260.0,0.74995395]
[1746733564109,0.62910003,101270.0,101260.0,0.73451955]
[1746733570419,0.62910003,101270.0,101260.0,0.64771955]
[1746733570619,0.62910003,101270.0,101260.0,0.73451955]
[1746733572613,0.62910003,101270.0,101260.0,0.74995408]
[1746733573218,0.62910003,101270.0,101260.0,0.73451955]
[1746733576725,0.62910003,101270.0,101260.0,1.08451955]
[1746733577018,0.62910003,101270.0,101260.0,0.86451955]
[1746733577618,0.71554003,101270.0,101260.0,0.01743785]
[1746733577921,1.07634003,101270.0,101260.0,0.01743785]
[1746733579118,1.0906763,101270.0,101260.0,0.01743785]
[1746733579322,1.0926763,101270.0,101260.0,0.01743785]
[1746733580021,1.07834003,101270.0,101260.0,0.01743785]
[1746733580524,1.07934003,101270.0,101260.0,0.01543785]
[1746733580722,0.63210003,101270.0,101260.0,0.57371955]
[1746733580922,0.71850003,101270.0,101260.0,0.60871955]
[1746733581826,0.71850003,101270.0,101260.0,0.41123785]
[1746733582014,0.63210003,101270.0,101260.0,0.41123785]
[1746733582218,0.71850003,101270.0,101260.0,0.41123785]
[1746733582624,0.71850003,101270.0,101260.0,0.60871955]
[1746733583713,0.71850003,101270.0,101260.0,0.64291955]
[1746733583912,0.71850003,101270.0,101260.0,0.44543785]
[1746733584327,0.63210003,101270.0,101260.0,0.64291955]
[1746733584528,0.63210003,101270.0,101260.0,0.72931955]
[1746733584529,0.4386222,101270.0,101260.0,0.72931955]
[1746733585518,0.4045222,101270.0,101260.0,0.74475457]
[1746733586130,0.2365222,101270.0,101260.0,0.74475457]
[1746733587027,0.2365222,101270.0,101260.0,0.72931955]
[1746733588728,0.2365222,101270.0,101260.0,0.74475409]
[1746733590127,0.4045222,101270.0,101260.0,0.744754]
[1746733591828,0.4045222,101270.0,101260.0,1.01475071]
[1746733592028,0.4045222,101270.0,101260.0,1.05005071]
[1746733592228,0.2365222,101270.0,101260.0,1.05005071]
[1746733593235,0.2365222,101270.0,101260.0,1.03461626]
[1746733598334,0.17346,101270.0,101260.0,1.24352711]
[1746733598531,0.17346,101270.0,101260.0,1.49968711]
[1746733598935,0.17346,101270.0,101260.0,1.49968573]
[1746733599134,0.00546,101270.0,101260.0,1.49968573]
[1746733599630,0.00446,101270.0,101260.0,1.3102079]
[1746733599830,0.00246,101270.0,101260.0,1.50368573]
[1746733600136,0.00246,101270.0,101260.0,1.85343772]
[1746733600436,0.2696969,101310.0,101300.0,0.1974037]
[1746733600628,0.2696969,101310.0,101300.0,0.6446037]
[1746733600629,0.49937473,101310.0,101300.0,0.6446037]
[1746733600827,0.49937473,101310.0,101300.0,0.7509037]
[1746733601029,0.49937473,101310.0,101300.0,0.76633826]
[1746733601225,0.73397643,101310.0,101300.0,0.76633826]
[1746733602829,0.73797643,101310.0,101300.0,0.77748474]
[1746733603021,0.2808017,101310.0,101300.0,0.91748474]
[1746733603228,0.0766017,101310.0,101300.0,1.12639031]
[1746733603426,0.0766017,101310.0,101300.0,1.14100495]
[1746733603642,0.0766017,101310.0,101300.0,0.94751968]
[1746733604329,0.0766017,101310.0,101300.0,0.9476909]
[1746733604730,0.01,101310.0,101300.0,0.9476909]
[1746733606834,0.01,101310.0,101300.0,1.36116873]
[1746733608037,0.01,101310.0,101300.0,1.36132334]
[1746733609630,0.01,101310.0,101300.0,1.36142833]
[1746733610234,0.0466,101310.0,101300.0,1.36142833]
[1746733610434,0.0466,101310.0,101300.0,1.1679505]
[1746733611339,0.0466,101310.0,101300.0,1.16795048]
[1746733614739,0.2439842,101310.0,101300.0,1.08155048]
[1746733615040,0.47436203,101310.0,101300.0,1.13182544]
[1746733615333,0.64236203,101310.0,101300.0,1.13182544]
[1746733615538,0.4488842,101310.0,101300.0,1.13182544]
[1746733616740,0.4488842,101310.0,101300.0,1.13179937]
[1746733618040,0.4488842,101310.0,101300.0,1.16719937]
[1746733618442,0.4488842,101310.0,101300.0,1.52799944]
[1746733618843,0.4488842,101310.0,101300.0,1.49259944]
[1746733619542,0.64236203,101310.0,101300.0,1.49259944]
[1746733620132,0.64236203,101310.0,101300.0,1.49256513]
[1746733620133,0.4488842,101310.0,101300.0,1.49256513]
[1746733622941,0.64236203,101310.0,101300.0,0.93516143]
[1746733623138,0.64236203,101310.0,101300.0,0.86446143]
[1746733623340,0.64236203,101310.0,101300.0,0.34026513]
[1746733623535,0.64236203,101310.0,101300.0,0.34029171]
[1746733623941,0.83583986,101310.0,101300.0,0.12827337]
[1746733624144,0.92167986,101310.0,101300.0,0.04235337]
[1746733624342,1.02039186,101310.0,101300.0,0.04235337]
[1746733624543,0.93455186,101310.0,101300.0,0.04235433]
[1746733624844,1.02035186,101310.0,101300.0,0.22432753]
[1746733625051,0.82687403,101310.0,101300.0,0.22432753]
[1746733625443,0.82687403,101310.0,101300.0,0.23975808]
[1746733625641,1.02035186,101310.0,101300.0,0.23975808]
[1746733626250,1.02035186,101310.0,101300.0,0.61975808]
[1746733626443,1.02035186,101310.0,101300.0,0.23975808]
[1746733626643,0.72816203,101310.0,101300.0,0.23975808]
[1746733627551,0.92163986,101310.0,101300.0,0.23975808]
[1746733628846,0.92163986,101310.0,101300.0,0.04225339]
[1746733629150,0.92163986,101310.0,101300.0,0.23965709]
[1746733629550,0.72816203,101310.0,101300.0,0.23965709]
[1746733629751,0.92163986,101310.0,101300.0,0.04225339]
[1746733632255,1.38115186,101310.0,101300.0,0.04225339]
[1746733632445,1.18376766,101310.0,101280.0,0.16874507]
[1746733632646,0.75170103,101290.0,101280.0,0.01543146]
[1746733633165,0.99110103,101290.0,101280.0,0.21287416]
[1746733633459,0.63030103,101290.0,101280.0,0.2327427]
[1746733633649,0.63030103,101290.0,101280.0,0.60897509]
[1746733633951,0.4368232,101290.0,101280.0,0.64277509]
[1746733634150,0.4368232,101290.0,101280.0,0.67837455]
[1746733635157,0.2332232,101290.0,101280.0,1.03185238]
[1746733635349,0.1994232,101290.0,101280.0,1.03185238]
[1746733635550,0.2349232,101290.0,101280.0,0.83837455]
[1746733637356,0.0375,101290.0,101280.0,1.28185238]
[1746733637561,0.002,101290.0,101280.0,1.28185238]
[1746733637859,0.1994232,101290.0,101280.0,1.28185002]
[1746733638054,0.002,101290.0,101280.0,1.28185002]
[1746733638257,0.002,101290.0,101280.0,1.95405985]
[1746733638961,0.002,101290.0,101280.0,1.76058202]
[1746733639156,0.002,101290.0,101280.0,1.51058202]
[1746733639350,0.002,101290.0,101280.0,1.49515253]
[1746733639559,0.002,101290.0,101280.0,1.51058133]
[1746733640357,0.002,101290.0,101280.0,1.3171035]
[1746733640560,0.002,101290.0,101280.0,1.51058133]
[1746733643869,0.002,101290.0,101280.0,1.3171035]
[1746733644060,0.002,101290.0,101280.0,1.51058133]
[1746733644265,0.1994232,101290.0,101280.0,1.2183715]
[1746733644466,0.002,101290.0,101280.0,1.42342089]
[1746733644865,0.002,101290.0,101280.0,1.29342089]
[1746733645267,0.002,101290.0,101280.0,1.39444966]
[1746733645566,0.3685236,101300.0,101290.0,0.1974232]
[1746733645771,0.56200143,101300.0,101290.0,0.65782356]
[1746733646072,0.73000143,101300.0,101290.0,0.67325233]
[1746733646472,0.73000143,101300.0,101290.0,0.67314109]
[1746733646669,0.5365236,101300.0,101290.0,0.67314109]
[1746733646863,0.73000143,101300.0,101290.0,0.67314109]
[1746733647064,0.5365236,101300.0,101290.0,0.67314109]
[1746733647371,0.5385236,101300.0,101290.0,0.67314109]
[1746733648283,0.5385236,101300.0,101290.0,0.67314269]
[1746733648671,0.73200143,101300.0,101290.0,0.67314269]
[1746733649989,0.73446143,101300.0,101290.0,0.67314269]
[1746733650287,0.73446143,101300.0,101290.0,0.67318762]
[1746733651891,0.73446143,101300.0,101290.0,0.67313929]
[1746733652690,0.73446143,101300.0,101290.0,0.75873929]
[1746733653591,0.73446143,101300.0,101290.0,0.7585457]
[1746733653785,0.5409836,101300.0,101290.0,0.7585457]
[1746733654191,0.3729836,101300.0,101290.0,0.7585457]
[1746733654690,0.56646143,101300.0,101290.0,0.7585457]
[1746733655089,0.73446143,101300.0,101290.0,0.7585457]
[1746733655290,0.73446143,101300.0,101290.0,0.7472825]
[1746733655485,0.73446143,101300.0,101290.0,0.75885522]
[1746733655988,0.5409836,101300.0,101290.0,0.75885522]
[1746733656292,0.5409836,101300.0,101290.0,1.16885522]
[1746733656992,0.5409836,101300.0,101290.0,0.94885522]
[1746733657184,0.5774836,101300.0,101290.0,0.98245519]
[1746733658797,0.5774836,101300.0,101290.0,0.9708825]
[1746733658999,0.5774836,101300.0,101290.0,0.98245472]
[1746733659498,0.77096143,101300.0,101290.0,0.98245472]
[1746733661195,0.5774836,101300.0,101290.0,0.98245472]
[1746733662493,0.5774836,101300.0,101290.0,0.9824538]
[1746733664098,0.77096143,101300.0,101290.0,0.9824538]
[1746733664395,0.5774836,101300.0,101290.0,0.9824538]
[1746733666598,0.5774836,101300.0,101290.0,0.9488538]
[1746733666792,0.77096143,101300.0,101290.0,0.9488538]
[1746733666991,0.5774836,101300.0,101290.0,0.9488538]
[1746733667799,0.5774836,101300.0,101290.0,0.94885382]
[1746733670292,0.5774836,101300.0,101290.0,0.98345382]
[1746733671299,0.5774836,101300.0,101290.0,0.9834558]
[1746733671499,0.5774836,101300.0,101290.0,1.1634558]
[1746733671997,0.3698782,101300.0,101290.0,1.35693363]
[1746733672196,0.00446,101300.0,101290.0,1.54693363]
[1746733672402,0.2018637,101300.0,101290.0,1.3534558]
[1746733672600,0.00446,101300.0,101290.0,1.54693363]
[1746733673097,0.00446,101300.0,101290.0,1.54693292]
[1746733673299,0.4151441,101310.0,101290.0,1.54693292]
[1746733673495,0.4151441,101310.0,101300.0,0.6614037]
[1746733673697,0.4151441,101310.0,101300.0,1.07840532]
[1746733674094,0.4151441,101310.0,101300.0,1.09383559]
[1746733674294,0.4191441,101310.0,101300.0,1.09383559]
[1746733674894,0.4191441,101310.0,101300.0,1.09383447]
[1746733675402,0.3204477,101310.0,101300.0,1.09383447]
[1746733675702,0.2876477,101310.0,101300.0,1.2873123]
[1746733676002,0.2043842,101310.0,101300.0,1.2873123]
[1746733676596,0.2043842,101310.0,101300.0,1.27188344]
[1746733676801,0.2033842,101310.0,101300.0,1.28731157]
[1746733677501,0.2013842,101310.0,101300.0,1.28731157]
[1746733677701,0.1983842,101310.0,101300.0,1.28731157]
[1746733678104,0.1983842,101310.0,101300.0,1.09383374]
[1746733678306,0.1983842,101310.0,101300.0,1.28731157]
[1746733678506,0.1983842,101310.0,101300.0,1.28731146]
[1746733679401,0.001,101310.0,101300.0,1.09383363]
[1746733679599,0.1998247,101320.0,101310.0,0.1973842]
[1746733679802,0.03716,101320.0,101310.0,1.16722386]
[1746733680009,0.2345247,101320.0,101310.0,1.37613196]
[1746733680199,0.2345247,101320.0,101310.0,1.18265139]
[1746733680510,0.00246,101320.0,101310.0,1.37612922]
[1746733680711,0.00546,101320.0,101310.0,1.37612922]
[1746733681001,0.00946,101320.0,101310.0,1.36455758]
[1746733681208,0.00946,101320.0,101310.0,1.18264861]
[1746733681405,0.00946,101320.0,101310.0,1.37612644]
[1746733681805,0.00946,101320.0,101310.0,1.37612631]
[1746733682506,0.00946,101320.0,101310.0,1.46456631]
[1746733682712,0.00946,101320.0,101310.0,1.92674814]
[1746733682913,0.00946,101320.0,101310.0,1.92674696]
[1746733683217,0.00083294,101320.0,101310.0,1.91070111]
[1746733683508,0.00083294,101320.0,101310.0,2.10417894]
[1746733683703,0.1067,101340.0,101330.0,0.1973453]
[1746733683913,0.0353,101340.0,101330.0,1.51485596]
[1746733684099,0.1973189,101350.0,101340.0,0.1973258]
[1746733684307,0.2341189,101350.0,101340.0,1.17159646]
[1746733684609,0.2341189,101350.0,101340.0,0.9935489]
[1746733684804,0.0368,101350.0,101340.0,1.201668]
[1746733685012,0.1703466,101360.0,101350.0,0.1973063]
[1746733685013,0.4169741,101360.0,101350.0,0.1973063]
[1746733685211,0.4175741,101360.0,101350.0,0.77823913]
[1746733685407,0.4537741,101360.0,101350.0,0.77823913]
[1746733685610,0.4537741,101360.0,101350.0,0.7936694]
[1746733686109,0.6217741,101360.0,101350.0,0.7936694]
[1746733686313,0.6217741,101360.0,101350.0,0.79366831]
[1746733686707,0.6297741,101360.0,101350.0,0.76667657]
[1746733687005,0.6297741,101360.0,101350.0,0.79366523]
[1746733687201,0.82325193,101360.0,101350.0,0.56165735]
[1746733687411,0.82325193,101360.0,101350.0,0.13225735]
[1746733687715,0.82325193,101360.0,101350.0,0.31414357]
[1746733688706,0.6297741,101360.0,101350.0,0.67494383]
[1746733688908,0.82325193,101360.0,101350.0,0.35094383]
[1746733690720,0.82325193,101360.0,101350.0,0.11683753]
[1746733690920,0.82325193,101360.0,101350.0,0.02699753]
[1746733691216,0.82325193,101360.0,101350.0,0.11683753]
[1746733692219,0.82325193,101360.0,101350.0,0.31414383]
[1746733692419,0.82325193,101360.0,101350.0,0.34854383]
[1746733693021,0.82325193,101360.0,101350.0,0.31414383]
[1746733693720,0.6297741,101360.0,101350.0,0.34764383]
[1746733694015,0.6297741,101360.0,101350.0,0.72386561]
[1746733694212,0.4124482,101360.0,101350.0,0.95174344]
[1746733694408,0.60592603,101360.0,101350.0,0.69036561]
[1746733694720,0.60592603,101360.0,101350.0,0.04241931]
[1746733694908,0.60592603,101360.0,101350.0,0.02699753]
[1746733695111,0.77392603,101360.0,101350.0,0.02699753]
[1746733695517,0.86404603,101360.0,101350.0,0.02699753]
[1746733695713,0.1973258,101340.0,101330.0,0.45064]
[1746733695921,0.58428146,101340.0,101330.0,0.46220829]
[1746733696123,0.85988146,101340.0,101330.0,0.6479853]
[1746733696320,0.66640363,101340.0,101330.0,0.6479853]
[1746733696715,0.66940363,101340.0,101330.0,0.6479853]
[1746733697021,0.66940363,101340.0,101330.0,0.46527203]
[1746733697620,0.4759258,101340.0,101330.0,0.66261733]
[1746733697823,0.66940363,101340.0,101330.0,0.66261733]
[1746733698023,0.67140363,101340.0,101330.0,0.66261733]
[1746733698722,0.86488146,101340.0,101330.0,0.66261733]
[1746733699021,0.86488146,101340.0,101330.0,0.6479853]
[1746733700217,0.1973453,101330.0,101320.0,0.0335]
[1746733700422,0.55980343,101330.0,101320.0,0.01542548]
[1746733700624,0.1973647,101320.0,101310.0,1.88245167]
[1746733700825,0.49734253,101320.0,101310.0,1.89787878]
[1746733701123,0.66534253,101320.0,101310.0,1.80803878]
[1746733701323,0.66534253,101320.0,101310.0,1.89787878]
[1746733702225,0.66534253,101320.0,101310.0,1.90087834]
[1746733702816,0.66534253,101320.0,101310.0,1.90287834]
[1746733703220,0.4359647,101320.0,101310.0,1.90287834]
[1746733703722,0.4699647,101320.0,101310.0,1.90287834]
[1746733704127,0.66344253,101320.0,101310.0,1.90287834]
[1746733704824,0.4699647,101320.0,101310.0,1.90287834]
[1746733705024,0.66344253,101320.0,101310.0,1.90287834]
[1746733706227,0.4699647,101320.0,101310.0,1.90287834]
[1746733706528,0.66344253,101320.0,101310.0,1.90287834]
[1746733706927,0.66344253,101320.0,101310.0,2.26367834]
[1746733707225,0.66344253,101320.0,101310.0,2.26367761]
[1746733707428,0.4699647,101320.0,101310.0,2.26367761]
[1746733707825,0.4699647,101320.0,101310.0,2.27501912]
[1746733708126,0.4699647,101320.0,101310.0,2.29044505]
[1746733708922,0.66344253,101320.0,101310.0,2.29044505]
[1746733709222,0.66344253,101320.0,101310.0,2.29057909]
[1746733709421,0.4699647,101320.0,101310.0,2.29057909]
[1746733709723,0.66344253,101320.0,101310.0,2.29057909]
[1746733710827,0.4699647,101320.0,101310.0,2.29057909]
[1746733711028,0.4699647,101320.0,101310.0,2.290673]
[1746733712030,0.66344253,101320.0,101310.0,2.290673]
[1746733712228,0.4699647,101320.0,101310.0,2.290673]
[1746733712629,0.3653647,101320.0,101310.0,2.290673]
[1746733713423,0.4012647,101320.0,101310.0,2.290673]
[1746733715132,0.3653647,101320.0,101310.0,2.290673]
[1746733715933,0.3653647,101320.0,101310.0,1.333753]
[1746733716431,0.3653647,101320.0,101310.0,1.3337528]
[1746733717429,0.3653647,101320.0,101310.0,1.6837528]
[1746733720134,0.3999647,101320.0,101310.0,1.68375273]
[1746733720627,0.168,101320.0,101310.0,1.68375273]
[1746733720833,0.3653647,101320.0,101310.0,1.68375273]
[1746733721530,0.59344253,101320.0,101310.0,1.68559273]
[1746733721737,0.66154253,101320.0,101310.0,1.68559273]
[1746733722232,0.2022,101320.0,101310.0,1.68559273]
[1746733722432,0.168,101320.0,101310.0,2.36125239]
[1746733722636,0.1587457,101320.0,101310.0,1.96429673]
[1746733722827,0.06652214,101320.0,101310.0,2.60125239]
[1746733723028,0.9452079,101350.0,101340.0,0.1973258]
[1746733723227,0.9452079,101350.0,101340.0,1.26240093]
[1746733723428,0.9452079,101350.0,101340.0,1.36950093]
[1746733723731,0.9452079,101350.0,101340.0,1.38492686]
[1746733724635,0.9160079,101350.0,101340.0,1.38492686]
[1746733724936,0.2369079,101350.0,101340.0,1.38492686]
[1746733725937,0.2409079,101350.0,101340.0,1.38492686]
[1746733726125,0.4444079,101350.0,101340.0,1.38492686]
[1746733727237,0.2764079,101350.0,101340.0,1.38492686]
[1746733727441,0.2409079,101350.0,101340.0,1.38492686]
[1746733727636,0.009,101350.0,101340.0,1.57840469]
[1746733727838,0.009,101350.0,101340.0,1.38492686]
[1746733728039,0.0806,101350.0,101340.0,1.38492686]
[1746733728229,0.25106,101350.0,101340.0,1.38492686]
[1746733728433,0.21396,101350.0,101340.0,1.38492686]
[1746733729140,0.4112663,101350.0,101340.0,1.38492686]
[1746733729336,0.4483663,101350.0,101340.0,1.38492686]
[1746733731540,0.4483663,101350.0,101340.0,1.37335752]
[1746733731740,0.64184413,101350.0,101340.0,1.33805752]
[1746733732343,0.4483663,101350.0,101340.0,1.33805752]
[1746733732543,0.64184413,101350.0,101340.0,1.33805752]
[1746733732743,0.4483663,101350.0,101340.0,1.33805752]
[1746733733543,0.4483663,101350.0,101340.0,1.24157752]
[1746733733740,0.4483663,101350.0,101340.0,1.34377752]
[1746733734341,0.17946,101350.0,101340.0,1.53725535]
[1746733734644,0.17946,101350.0,101340.0,1.54842026]
[1746733735144,0.21266,101350.0,101340.0,1.54842026]
[1746733736247,0.20766,101350.0,101340.0,1.54842026]
[1746733736439,0.20866,101350.0,101340.0,1.35494243]
[1746733736639,0.20866,101350.0,101340.0,1.34377752]
[1746733736945,0.20466,101350.0,101340.0,1.34377752]
[1746733737347,0.03666,101350.0,101340.0,1.34377752]
[1746733737543,0.06906,101350.0,101340.0,1.34377752]
[1746733737847,0.06906,101350.0,101340.0,1.34377219]
[1746733738347,0.23706,101350.0,101340.0,1.34377219]
[1746733739047,0.4343663,101350.0,101340.0,1.34377219]
[1746733739747,0.23706,101350.0,101340.0,1.34377219]
[1746733740348,0.4343663,101350.0,101340.0,1.34377219]
[1746733744854,0.4343663,101350.0,101340.0,1.34377266]
[1746733746256,0.4343663,101350.0,101340.0,1.54377266]
[1746733746555,0.4343663,101350.0,101340.0,1.39377266]
[1746733746753,0.4343663,101350.0,101340.0,1.39377265]
[1746733747857,0.23706,101350.0,101340.0,1.39377265]
[1746733748157,0.4343663,101350.0,101340.0,1.39377265]
[1746733748457,0.23706,101350.0,101340.0,1.39377265]
[1746733748658,0.4343663,101350.0,101340.0,1.39377265]
[1746733749459,0.23706,101350.0,101340.0,1.39377265]
[1746733749649,0.4343663,101350.0,101340.0,1.39377265]
[1746733750150,0.4343663,101350.0,101340.0,1.39377275]
[1746733750354,0.23706,101350.0,101340.0,1.39377275]
[1746733750545,0.23706,101350.0,101340.0,1.34377275]
[1746733750856,0.4343663,101350.0,101340.0,1.34377275]
[1746733752146,0.23706,101350.0,101340.0,1.34377275]
[1746733752350,0.4343663,101350.0,101340.0,1.34377275]
[1746733752556,0.23706,101350.0,101340.0,1.34377275]
[1746733752754,0.4343663,101350.0,101340.0,1.34377275]
[1746733753359,0.23706,101350.0,101340.0,1.34377275]
[1746733753762,0.4343663,101350.0,101340.0,1.34377275]
[1746733754251,0.23706,101350.0,101340.0,1.34377275]
[1746733754759,0.4343663,101350.0,101340.0,1.34377275]
[1746733755155,0.23706,101350.0,101340.0,1.34377275]
[1746733755359,0.23706,101350.0,101340.0,1.32835173]
[1746733755657,0.23706,101350.0,101340.0,1.34377275]
[1746733756263,0.4343663,101350.0,101340.0,1.34377275]
[1746733756757,0.23706,101350.0,101340.0,1.34377275]
[1746733757258,0.4343663,101350.0,101340.0,1.34377275]
[1746733757458,0.23706,101350.0,101340.0,1.34377275]
[1746733759353,0.17146,101350.0,101340.0,1.53725058]
[1746733759553,0.17146,101350.0,101340.0,1.91072841]
[1746733759762,0.17146,101350.0,101340.0,1.72841863]
[1746733760253,0.00346,101350.0,101340.0,1.72841863]
[1746733760458,0.033,101360.0,101350.0,0.1973063]
[1746733760653,0.033,101360.0,101350.0,1.05742608]
[1746733760859,0.033,101360.0,101350.0,1.25090391]
[1746733761057,0.033,101360.0,101350.0,1.26632984]
[1746733761258,0.2302868,101360.0,101350.0,1.26632984]
[1746733761460,0.2302868,101360.0,101350.0,1.44632984]
[1746733761764,0.033,101360.0,101350.0,1.44832984]
[1746733762064,0.2302868,101360.0,101350.0,1.45132984]
[1746733762263,0.201,101360.0,101350.0,1.45132984]
[1746733762564,0.201,101360.0,101350.0,1.25785201]
[1746733762755,0.3982868,101360.0,101350.0,1.46266172]
[1746733763163,0.201,101360.0,101350.0,1.46266172]
[1746733763554,0.3982868,101360.0,101350.0,1.26918389]
[1746733763754,0.201,101360.0,101350.0,1.46266172]
[1746733764357,0.201,101360.0,101350.0,1.46280427]